bitfinex-derivatives/quotes_ETHF0:USTF0_20230701
["timestamp","ask_amount","ask_price","bid_price","bid_amount"]
[1688199210576,11.44457343,1919.3,1919.1,0.93798]
[1688199211274,5.2834,1919.2,1919.1,0.93798]
[1688199211575,6.53475196,1919.2,1919.1,0.93798]
[1688199212179,11.20675196,1919.2,1919.1,0.93798]
[1688199215476,11.20675196,1919.2,1919.1,1.22469635]
[1688199215877,11.20675196,1919.2,1919.1,0.93798]
[1688199220881,11.20675196,1919.2,1919.1,1.03252887]
[1688199221577,11.20675196,1919.2,1919.1,0.09454887]
[1688199221781,14.41455196,1919.2,1919.1,0.09454887]
[1688199222385,14.51755196,1919.2,1919.1,0.09454887]
[1688199222683,0.31273,1919.0,1918.9,3.47085827]
[1688199222988,8.19253,1919.0,1918.9,3.47085827]
[1688199223182,9.13119196,1919.0,1918.9,3.47085827]
[1688199223487,14.01729196,1919.0,1918.9,3.47085827]
[1688199224593,14.01729196,1919.0,1918.9,3.54756272]
[1688199228987,14.01729196,1919.0,1918.9,3.86032272]
[1688199229390,10.80949196,1919.0,1918.9,3.86032272]
[1688199230994,11.22211896,1919.0,1918.9,3.86032272]
[1688199232599,11.32511896,1919.0,1918.9,3.86032272]
[1688199232799,11.32511896,1919.0,1918.9,3.54756272]
[1688199235605,14.53291896,1919.0,1918.9,3.54756272]
[1688199237597,11.32511896,1919.0,1918.9,3.54756272]
[1688199239599,14.53291896,1919.0,1918.9,3.3512821]
[1688199239803,14.53291896,1919.0,1918.9,3.20456496]
[1688199240001,14.53291896,1919.0,1918.9,2.87343007]
[1688199240703,19.22291896,1919.0,1918.7,0.00781718]
[1688199240905,12.5078,1918.8,1918.7,0.00781718]
[1688199241103,13.75922196,1918.8,1918.7,0.00781718]
[1688199241804,18.80342196,1918.8,1918.7,0.00781718]
[1688199243707,18.90642196,1918.8,1918.7,0.00781718]
[1688199243911,18.90642196,1918.8,1918.2,5.70436]
[1688199244205,5.00284,1918.3,1918.2,5.60036]
[1688199244412,5.00284,1918.3,1918.2,0.93846]
[1688199246609,5.00284,1918.3,1918.1,0.00521601]
[1688199246814,0.31284,1918.3,1918.2,0.31286]
[1688199247015,4.98484,1918.3,1918.2,0.31286]
[1688199247408,9.85814,1918.3,1918.2,0.31286]
[1688199247607,10.79680196,1918.3,1918.2,0.31286]
[1688199247808,10.79680196,1918.3,1918.1,0.78737601]
[1688199248009,9.8081,1918.2,1918.1,0.78737601]
[1688199248210,11.05962196,1918.2,1918.1,0.78737601]
[1688199248411,11.05962196,1918.2,1918.1,1.00186883]
[1688199249715,11.05962196,1918.2,1918.1,0.21970883]
[1688199249911,15.74962196,1918.2,1918.1,0.21970883]
[1688199250319,15.74962196,1918.2,1918.1,0.28259561]
[1688199256116,5.0,1918.1,1917.8,0.93881]
[1688199256421,7.8798,1917.9,1917.8,0.93881]
[1688199256721,8.19272,1917.9,1917.8,0.93881]
[1688199257224,12.98732,1917.9,1917.7,0.31294]
[1688199257524,5.00294,1917.8,1917.7,0.31294]
[1688199262923,10.26014,1917.8,1917.7,0.31294]
[1688199263811,10.26014,1917.8,1917.7,0.59956284]
[1688199268229,10.68773962,1917.8,1917.7,0.59956284]
[1688199270032,5.43053962,1917.8,1917.7,0.59956284]
[1688199270229,5.11759962,1917.8,1917.7,0.88627919]
[1688199270624,5.43053962,1917.8,1917.7,0.88627919]
[1688199272129,10.67863962,1917.8,1917.7,0.28662284]
[1688199274346,10.67863962,1917.8,1917.7,0.59957284]
[1688199275834,10.67863962,1917.8,1917.7,0.28662284]
[1688199277744,10.67863962,1917.8,1917.7,0.88628919]
[1688199278342,10.67863962,1917.8,1917.7,0.59957284]
[1688199280250,5.11759962,1917.8,1917.7,0.88628919]
[1688199280437,5.43053962,1917.8,1917.7,0.88628919]
[1688199281340,5.11759962,1917.8,1917.7,0.88628919]
[1688199281543,0.42759962,1917.8,1917.7,5.56728919]
[1688199281746,4.69,1918.0,1917.7,5.56728919]
[1688199281952,4.69,1918.0,1917.9,3.2078]
[1688199282147,4.98489,1918.1,1917.9,3.80743635]
[1688199282451,4.98489,1918.1,1917.9,4.15016127]
[1688199282644,5.40386704,1918.1,1917.9,4.15016127]
[1688199284050,5.40386704,1918.1,1917.9,4.25416127]
[1688199284755,5.40386704,1918.1,1918.0,0.56748412]
[1688199284951,5.40386704,1918.1,1918.0,0.88038412]
[1688199285151,5.40386704,1918.1,1918.0,1.22309532]
[1688199285548,5.40386704,1918.1,1918.0,0.6556112]
[1688199288348,6.3430942,1918.1,1918.0,0.6556112]
[1688199288548,6.3430942,1918.1,1918.0,0.3427112]
[1688199288855,6.3430942,1918.1,1918.0,0.6556212]
[1688199289652,6.3430942,1918.1,1918.0,0.3427112]
[1688199289852,6.3430942,1918.1,1918.0,0.6556212]
[1688199290559,6.3430942,1918.1,1918.0,0.3427112]
[1688199291247,6.3430942,1918.1,1918.0,0.31291]
[1688199291656,6.3430942,1918.1,1918.0,0.65558964]
[1688199292058,6.3430942,1918.1,1918.0,0.34267964]
[1688199293263,6.3430942,1918.1,1918.0,0.65557964]
[1688199293462,6.3430942,1918.1,1918.0,0.3129]
[1688199293659,6.3430942,1918.1,1918.0,0.65556928]
[1688199294364,6.3430942,1918.1,1918.0,0.94228563]
[1688199294764,6.0302042,1918.1,1918.0,0.65556928]
[1688199294959,5.09097704,1918.1,1918.0,0.94228563]
[1688199295260,0.41897704,1918.1,1918.0,5.73628563]
[1688199295659,4.649,1918.2,1918.0,5.73628563]
[1688199295859,4.96187,1918.2,1918.0,5.73628563]
[1688199296057,4.96187,1918.2,1918.1,0.56748412]
[1688199296259,4.96187,1918.2,1918.1,1.22301025]
[1688199296865,4.649,1918.2,1918.1,1.22301025]
[1688199297164,5.37200567,1918.2,1918.1,1.22301025]
[1688199297364,5.05913567,1918.2,1918.1,1.22301025]
[1688199297966,5.37199567,1918.2,1918.1,1.22301025]
[1688199298968,5.37200567,1918.2,1918.1,1.22301025]
[1688199300166,5.37200567,1918.2,1918.1,0.65552613]
[1688199300360,5.05913567,1918.2,1918.1,0.65552613]
[1688199300559,0.41013567,1918.2,1918.1,8.55332613]
[1688199300765,6.22532716,1918.3,1918.1,8.55332613]
[1688199300968,6.22532716,1918.3,1918.2,1.16707047]
[1688199301167,6.22532716,1918.3,1918.2,1.4624825]
[1688199301558,6.63916612,1918.3,1918.2,1.4624825]
[1688199301763,1.35306612,1918.3,1918.2,1.5664825]
[1688199301962,0.41383896,1918.3,1918.2,1.5664825]
[1688199302168,4.99265962,1918.4,1918.2,1.5664825]
[1688199302371,10.10675962,1918.4,1918.2,1.5664825]
[1688199302571,11.04598678,1918.4,1918.2,1.5664825]
[1688199303567,5.00285,1918.3,1918.2,1.4624825]
[1688199304365,5.00285,1918.3,1918.2,0.89499838]
[1688199305269,5.00285,1918.3,1918.2,0.60828203]
[1688199305465,5.00285,1918.3,1918.2,0.89499838]
[1688199305974,10.27375,1918.3,1918.2,0.89499838]
[1688199306166,11.21297716,1918.3,1918.2,0.60828203]
[1688199306863,11.21297716,1918.3,1918.2,0.89499838]
[1688199308180,11.21297716,1918.3,1918.2,0.60828203]
[1688199308474,11.21297716,1918.3,1918.2,0.89499838]
[1688199308774,11.21297716,1918.3,1918.2,0.60828203]
[1688199309676,11.21297716,1918.3,1918.2,0.89499838]
[1688199311877,11.21296716,1918.3,1918.2,0.89499838]
[1688199312077,10.90012716,1918.3,1918.2,0.89499838]
[1688199313466,10.90012716,1918.3,1918.2,0.60828203]
[1688199313866,11.21296716,1918.3,1918.2,0.60828203]
[1688199314077,11.21296716,1918.3,1918.2,0.89499838]
[1688199314479,10.90012716,1918.3,1918.2,0.89499838]
[1688199315973,5.62922716,1918.3,1918.2,0.89499838]
[1688199316174,4.69,1918.3,1918.2,0.89499838]
[1688199320071,9.5065,1918.3,1918.2,0.89499838]
[1688199320371,10.44572716,1918.3,1918.2,0.89499838]
[1688199320873,10.75857716,1918.3,1918.2,0.89499838]
[1688199321179,10.44572716,1918.3,1918.2,0.89499838]
[1688199322274,5.75572716,1918.3,1918.2,0.89499838]
[1688199332085,5.75572716,1918.3,1918.2,5.57199838]
[1688199332279,4.8165,1918.3,1918.2,5.57199838]
[1688199333285,6.46826856,1918.4,1918.2,5.57199838]
[1688199333485,5.5290414,1918.4,1918.3,0.56748412]
[1688199333672,10.3366414,1918.4,1918.3,0.88033412]
[1688199333872,5.12191962,1918.4,1918.3,9.03819989]
[1688199334077,0.00781962,1918.4,1918.3,9.03819989]
[1688199336679,0.00781962,1918.4,1918.3,8.47071577]
[1688199338484,0.00781962,1918.4,1918.3,5.26291577]
[1688199342098,4.65881962,1918.4,1918.3,0.58291577]
[1688199342284,5.59804678,1918.4,1918.3,0.58291577]
[1688199343991,6.01386678,1918.4,1918.3,0.27006577]
[1688199344193,0.31287,1918.2,1918.1,0.78218]
[1688199344391,4.98487,1918.2,1918.1,0.78218]
[1688199344696,4.98487,1918.2,1918.1,1.06220875]
[1688199344893,10.07037,1918.2,1918.1,1.06220875]
[1688199347394,15.19647,1918.2,1918.1,1.06220875]
[1688199347589,16.13569716,1918.2,1918.1,1.06220875]
[1688199348302,16.23869716,1918.2,1918.1,1.06220875]
[1688199351500,16.23869716,1918.2,1918.1,0.28002875]
[1688199353201,16.23869716,1918.2,1918.1,0.31289]
[1688199353504,16.23869716,1918.2,1918.0,0.78224]
[1688199353703,13.83527,1918.2,1918.1,0.47037304]
[1688199353902,19.46443584,1918.2,1918.1,0.47037304]
[1688199355098,16.25663584,1918.2,1918.1,0.47037304]
[1688199356204,16.68406724,1918.2,1918.1,0.47037304]
[1688199356804,16.58106724,1918.2,1918.1,0.47037304]
[1688199357201,16.58106724,1918.2,1918.1,0.15748304]
[1688199357701,16.58106724,1918.2,1918.1,0.47037304]
[1688199363610,16.58106724,1918.2,1918.1,0.15748304]
[1688199364311,19.78886724,1918.2,1918.1,0.15748304]
[1688199365015,24.47886724,1918.2,1918.1,0.15748304]
[1688199365215,24.58186724,1918.2,1918.1,0.15748304]
[1688199365804,0.103,1918.0,1917.8,0.78221]
[1688199366006,5.00293,1917.9,1917.7,0.93877]
[1688199366209,7.8588,1917.8,1917.7,0.93877]
[1688199366414,8.17174,1917.8,1917.7,0.93877]
[1688199367208,8.17174,1917.8,1917.5,1.0433]
[1688199367416,4.69,1917.6,1917.5,1.0433]
[1688199367617,5.00298,1917.6,1917.5,1.0433]
[1688199369615,10.13868,1917.6,1917.5,1.0433]
[1688199369809,11.07784584,1917.6,1917.5,1.0433]
[1688199373019,11.07784584,1917.6,1917.4,0.31299]
[1688199373216,4.98499,1917.5,1917.4,0.31299]
[1688199373410,4.98499,1917.5,1917.3,9.70017034]
[1688199373411,4.98499,1917.5,1917.3,0.93897]
[1688199373618,5.00301,1917.4,1917.3,0.93897]
[1688199373923,9.83351,1917.4,1917.3,0.93897]
[1688199374315,5.0,1917.2,1917.0,0.31307]
[1688199374614,8.21086,1917.1,1917.0,0.31307]
[1688199375629,8.21086,1917.1,1916.9,0.78271]
[1688199375925,9.569,1917.0,1916.9,0.78271]
[1688199376216,9.88208,1917.0,1916.8,0.31309]
[1688199376422,4.69,1916.9,1916.8,0.78277]
[1688199378417,4.69,1916.9,1916.8,1.06948635]
[1688199379622,4.69,1916.9,1916.8,0.78277]
[1688199380732,4.69,1917.0,1916.8,1.06948635]
[1688199381026,0.74013889,1917.2,1917.0,0.31307]
[1688199381211,4.98505,1917.1,1917.0,0.31307]
[1688199385531,4.672,1917.1,1917.0,0.59978635]
[1688199388632,5.096906,1917.1,1917.0,0.59978635]
[1688199389729,5.096906,1917.1,1917.0,1.06004521]
[1688199393427,5.114906,1917.1,1917.0,0.77332886]
[1688199398540,5.427956,1917.1,1917.0,0.77332886]
[1688199399938,5.114906,1917.1,1917.0,0.77332886]
[1688199400329,5.427956,1917.1,1917.0,1.06004521]
[1688199400932,5.427956,1917.1,1917.0,0.77332886]
[1688199401231,5.114906,1917.1,1917.0,0.77332886]
[1688199402034,5.427956,1917.1,1917.0,0.77332886]
[1688199405847,5.427956,1917.1,1917.0,1.06004521]
[1688199406750,5.096906,1917.1,1917.0,1.06004521]
[1688199414753,10.190306,1917.1,1917.0,1.06004521]
[1688199414949,11.12899469,1917.1,1917.0,1.06004521]
[1688199418044,11.12899469,1917.1,1917.0,0.77332886]
[1688199418947,11.44205469,1917.1,1917.0,0.77332886]
[1688199419659,11.12899469,1917.1,1917.0,0.77332886]
[1688199419850,11.44205469,1917.1,1917.0,0.77332886]
[1688199420157,11.42105469,1917.1,1917.0,0.77332886]
[1688199423252,11.42105469,1917.1,1917.0,1.06004521]
[1688199424059,11.10799469,1917.1,1917.0,1.06004521]
[1688199424358,6.77005469,1917.1,1917.0,1.06004521]
[1688199425057,6.45699469,1917.1,1917.0,1.06004521]
[1688199425763,6.77005469,1917.1,1917.0,1.06004521]
[1688199427465,6.77005469,1917.1,1917.0,4.26784521]
[1688199429863,6.45699469,1917.1,1917.0,4.26784521]
[1688199431071,1.36359469,1917.1,1917.0,4.26784521]
[1688199431370,0.424906,1917.1,1917.0,4.26784521]
[1688199431764,5.0774,1917.1,1917.0,4.26784521]
[1688199433378,6.01608869,1917.1,1917.0,4.26784521]
[1688199434068,5.0774,1917.1,1917.0,4.26784521]
[1688199435482,6.01608869,1917.1,1917.0,4.26784521]
[1688199446381,6.01608869,1917.1,1917.0,3.98112886]
[1688199446675,6.01608869,1917.1,1917.0,0.77332886]
[1688199447076,11.12214869,1917.1,1917.0,0.77332886]
[1688199449496,11.12214869,1917.1,1917.0,0.46025886]
[1688199450379,11.12214869,1917.1,1917.0,0.77333886]
[1688199452674,10.80908869,1917.1,1917.0,0.77333886]
[1688199453174,10.80908869,1917.1,1916.9,0.78267]
[1688199453392,4.69,1917.0,1916.9,0.78267]
[1688199453686,5.00308,1917.0,1916.9,0.31309]
[1688199455183,13.15008,1917.0,1916.8,0.93933]
[1688199455392,4.9641,1916.9,1916.8,0.93933]
[1688199456986,10.1916,1916.9,1916.8,0.93933]
[1688199457188,11.13028869,1916.9,1916.8,0.93933]
[1688199458295,10.81718869,1916.9,1916.8,1.22604635]
[1688199458488,9.8785,1916.9,1916.8,1.22604635]
[1688199460191,9.9175,1916.9,1916.8,1.22604635]
[1688199460386,10.85618869,1916.9,1916.8,1.22604635]
[1688199460791,4.69,1916.9,1916.8,1.22604635]
[1688199461094,4.69,1916.9,1916.8,1.55467955]
[1688199461592,4.69,1916.9,1916.8,4.76247955]
[1688199462188,9.8077,1916.9,1916.8,4.76247955]
[1688199463995,9.8077,1916.9,1916.8,4.13625955]
[1688199464296,14.9301,1916.9,1916.8,4.13625955]
[1688199464592,16.29106889,1916.9,1916.8,4.13625955]
[1688199465788,11.16866889,1916.9,1916.8,4.13625955]
[1688199466098,10.2299802,1916.9,1916.8,4.13625955]
[1688199466497,5.1122802,1916.9,1916.8,4.13625955]
[1688199472113,0.4222802,1916.9,1916.8,4.13625955]
[1688199472610,4.69,1917.0,1916.8,4.13625955]
[1688199474711,4.69,1917.0,1916.9,0.88058412]
[1688199474911,5.10532483,1917.0,1916.9,0.88058412]
[1688199475108,5.10532483,1917.0,1916.9,1.17759553]
[1688199480717,0.41532483,1917.0,1916.9,5.85759553]
[1688199481126,4.65882431,1917.3,1916.9,5.85759553]
[1688199481317,9.49922431,1917.3,1917.2,3.2078]
[1688199481517,9.49922431,1917.3,1917.2,4.37505047]
[1688199481831,9.49922431,1917.3,1917.2,4.61905041]
[1688199482120,4.84822431,1917.3,1917.2,4.61905041]
[1688199483129,5.27401443,1917.3,1917.2,4.61905041]
[1688199483427,6.21270312,1917.3,1917.2,4.61905041]
[1688199487832,5.786913,1917.3,1917.2,4.61905041]
[1688199488030,4.84822431,1917.3,1917.2,4.61905041]
[1688199492131,4.84822431,1917.3,1917.2,4.05156629]
[1688199492329,5.786913,1917.3,1917.2,4.05156629]
[1688199494535,5.786913,1917.3,1917.2,3.93743622]
[1688199495436,0.946513,1917.3,1917.2,3.93743622]
[1688199495633,5.61068869,1917.7,1917.3,0.56748412]
[1688199495836,4.672,1917.7,1917.5,3.2078]
[1688199496139,5.0971517,1917.7,1917.6,1.16718047]
[1688199499033,15.5215517,1917.7,1917.6,1.16718047]
[1688199499235,16.46024039,1917.7,1917.6,1.16718047]
[1688199500235,16.87621039,1917.7,1917.6,1.16718047]
[1688199500436,16.87621039,1917.7,1917.6,0.31298]
[1688199502037,16.89421039,1917.7,1917.6,0.31298]
[1688199503239,16.89421039,1917.7,1917.5,0.79029207]
[1688199503432,5.58968869,1917.6,1917.5,0.79029207]
[1688199503736,5.90267869,1917.6,1917.5,0.79029207]
[1688199504334,6.00567869,1917.6,1917.5,0.79029207]
[1688199509347,6.00567869,1917.6,1917.5,0.85337421]
[1688199509551,6.04467869,1917.6,1917.5,0.85337421]
[1688199510246,6.04467869,1917.6,1917.5,1.14009056]
[1688199510649,6.04467869,1917.6,1917.5,0.85337421]
[1688199512057,6.02667869,1917.6,1917.5,0.85337421]
[1688199515254,6.02667869,1917.6,1917.5,0.79029207]
[1688199517058,5.92367869,1917.6,1917.5,0.79029207]
[1688199517952,5.61068869,1917.6,1917.5,1.07700842]
[1688199518263,0.93868869,1917.6,1917.5,1.07700842]
[1688199518454,5.1151517,1917.7,1917.5,1.07700842]
[1688199518758,5.1151517,1917.7,1917.6,0.88046412]
[1688199521760,5.4281117,1917.7,1917.6,0.88046412]
[1688199522059,0.7381117,1917.7,1917.6,0.88046412]
[1688199523164,5.4281117,1917.7,1917.6,0.31298]
[1688199529260,5.4281117,1917.7,1917.5,0.79029207]
[1688199529466,5.4281117,1917.7,1917.6,0.31298]
[1688199531858,5.4281117,1917.7,1917.5,0.79029207]
[1688199532172,0.7381117,1917.7,1917.6,0.31298]
[1688199532361,5.4281117,1917.7,1917.6,0.31298]
[1688199532954,5.4281117,1917.7,1917.5,0.00782207]
[1688199533160,4.69,1917.6,1917.5,0.00782207]
[1688199533363,10.14438,1917.6,1917.5,0.00782207]
[1688199533866,13.35218,1917.6,1917.5,0.32082207]
[1688199534066,18.23868,1917.6,1917.5,0.32082207]
[1688199534267,19.17736869,1917.6,1917.5,0.32082207]
[1688199535568,19.28036869,1917.6,1917.5,0.00782207]
[1688199536262,19.28036869,1917.6,1917.5,0.32082207]
[1688199536669,16.07256869,1917.6,1917.5,0.32082207]
[1688199538168,19.28036869,1917.6,1917.5,0.32082207]
[1688199538866,19.28036869,1917.6,1917.5,0.00782207]
[1688199539565,19.28036869,1917.6,1917.5,0.0878667]
[1688199540274,19.17736869,1917.6,1917.5,0.0878667]
[1688199542072,23.86736869,1917.6,1917.5,0.0878667]
[1688199543372,23.86736869,1917.6,1917.5,0.08002717]
[1688199543373,23.97036869,1917.6,1917.5,0.08002717]
[1688199543568,23.97036869,1917.6,1917.3,0.313]
[1688199543764,7.8978,1917.4,1917.3,0.313]
[1688199544073,8.21082,1917.4,1917.3,0.313]
[1688199544465,18.20512,1917.4,1917.3,0.313]
[1688199544665,19.14380869,1917.4,1917.3,0.313]
[1688199548077,19.24680869,1917.4,1917.3,0.313]
[1688199548373,0.41603,1917.3,1917.2,0.93909]
[1688199548672,6.04471869,1917.3,1917.2,0.93909]
[1688199549567,0.31306,1917.1,1916.9,11.06569]
[1688199549771,5.00308,1917.0,1916.9,5.29489]
[1688199550381,15.19388,1917.0,1916.9,0.31309]
[1688199550570,16.13256869,1917.0,1916.8,0.78275]
[1688199550770,5.62868869,1916.9,1916.8,0.78275]
[1688199551069,5.94178869,1916.9,1916.8,0.78275]
[1688199553573,5.94178869,1916.9,1916.8,0.31311]
[1688199554470,5.94178869,1916.9,1916.8,0.41616192]
[1688199556868,5.94178869,1916.9,1916.8,0.10305192]
[1688199558068,10.94178869,1916.9,1916.8,0.10305192]
[1688199558378,5.31313,1916.7,1916.6,0.78285]
[1688199558573,9.96413,1916.7,1916.5,4.14719]
[1688199558774,9.96413,1916.7,1916.6,0.31315]
[1688199559567,10.90281869,1916.7,1916.6,0.31315]
[1688199560175,10.90281869,1916.7,1916.5,0.93939]
[1688199560378,4.651,1916.6,1916.5,0.93939]
[1688199560572,4.96415,1916.6,1916.5,0.93939]
[1688199566686,4.96415,1916.6,1916.5,1.22610635]
[1688199567682,4.96415,1916.6,1916.5,0.93939]
[1688199569392,4.96415,1916.6,1916.5,1.18442105]
[1688199576796,8.27495,1916.6,1916.5,0.24503105]
[1688199577098,4.69,1916.5,1916.3,0.31319]
[1688199577301,0.3132,1916.3,1916.2,0.93953]
[1688199577501,5.0032,1916.3,1916.2,0.93953]
[1688199578104,9.9872,1916.3,1916.2,0.93953]
[1688199578300,10.92588869,1916.3,1916.2,0.93953]
[1688199581302,10.92588869,1916.3,1916.0,0.31324]
[1688199581507,4.98523,1916.1,1916.0,0.31324]
[1688199581905,4.98523,1916.1,1915.9,0.78302]
[1688199582103,4.69,1916.0,1915.9,0.78302]
[1688199582709,5.00324,1916.0,1915.8,10.81352]
[1688199582910,4.69,1915.9,1915.8,10.81352]
[1688199583313,4.69,1915.9,1915.8,4.8384]
[1688199583502,4.69,1915.9,1915.8,0.78314]
[1688199584413,4.69,1915.9,1915.8,1.11607715]
[1688199584913,4.69,1915.9,1915.8,1.4027935]
[1688199585213,4.69,1916.0,1915.8,1.4027935]
[1688199585412,4.69,1916.0,1915.9,3.52106]
[1688199585912,4.69,1916.0,1915.9,3.82305021]
[1688199586114,4.69,1916.0,1915.9,3.92705021]
[1688199586312,4.69,1916.2,1915.9,9.18453433]
[1688199586508,5.00321,1916.2,1916.1,0.31323]
[1688199586903,4.69,1916.2,1916.1,3.74136509]
[1688199587104,4.69,1916.2,1916.1,4.30884921]
[1688199588217,5.09493157,1916.4,1916.1,8.98584921]
[1688199588420,5.40811157,1916.4,1916.2,0.28671635]
[1688199588614,5.40811157,1916.4,1916.3,0.3132]
[1688199588920,5.40811157,1916.4,1916.3,0.53352898]
[1688199595429,0.42293157,1916.4,1916.3,4.3088131]
[1688199595915,5.9232628,1916.5,1916.3,4.21403462]
[1688199596223,5.9232628,1916.5,1916.4,0.28671635]
[1688199596423,5.9232628,1916.5,1916.4,0.71930259]
[1688199596622,6.3481648,1916.5,1916.4,0.71930259]
[1688199597616,6.3481648,1916.5,1916.4,0.43258624]
[1688199598222,6.3481648,1916.5,1916.4,0.71930259]
[1688199600224,6.0350048,1916.5,1916.4,0.71930259]
[1688199602132,1.3630048,1916.5,1916.4,0.71930259]
[1688199606532,1.3630048,1916.5,1916.4,5.39630259]
[1688199606735,0.00782616,1916.8,1916.4,5.39630259]
[1688199606948,0.00782616,1916.8,1916.7,3.52093]
[1688199607246,0.94592896,1916.8,1916.7,3.80764635]
[1688199607429,0.94592896,1916.8,1916.7,4.37513047]
[1688199607936,1.3652257,1916.8,1916.7,4.37513047]
[1688199608239,0.94592896,1916.8,1916.7,4.37513047]
[1688199614456,0.00782616,1916.8,1916.7,9.06513047]
[1688199625454,0.00782616,1916.8,1916.7,9.48646345]
[1688199632160,5.07,1917.0,1916.7,9.48646345]
[1688199632364,5.2099,1917.1,1916.9,7.8978]
[1688199632566,4.9921,1917.2,1917.0,5.84428047]
[1688199632762,4.9921,1917.2,1917.1,7.8888]
[1688199632970,4.9921,1917.2,1917.1,8.20186]
[1688199633360,10.234,1917.2,1917.1,8.20186]
[1688199640673,10.31738162,1917.2,1917.1,8.20186]
[1688199644769,0.08338162,1917.2,1917.1,8.20186]
[1688199644979,0.4153764,1917.4,1917.2,0.85420047]
[1688199645171,5.1437,1917.4,1917.3,8.19783]
[1688199645677,5.1437,1917.4,1917.3,8.48454635]
[1688199650480,5.2467,1917.4,1917.3,8.48454635]
[1688199652085,5.1437,1917.4,1917.3,8.48454635]
[1688199652885,5.30552167,1917.4,1917.3,8.48454635]
[1688199653381,5.40852167,1917.4,1917.3,8.48454635]
[1688199660584,5.30552167,1917.4,1917.3,8.48454635]
[1688199664483,5.72153167,1917.4,1917.2,5.46358]
[1688199664679,11.1878879,1917.4,1917.2,0.78258]
[1688199667189,0.41603,1917.3,1917.2,0.78258]
[1688199667883,5.31633,1917.3,1917.2,0.78258]
[1688199668083,6.2545079,1917.3,1917.2,0.78258]
[1688199673193,6.2545079,1917.3,1917.1,8.20085]
[1688199673194,6.2545079,1917.3,1917.1,8.67044]
[1688199673889,5.2158,1917.2,1917.1,8.67044]
[1688199674098,5.52885,1917.2,1917.1,8.67044]
[1688199675096,5.52885,1917.2,1917.1,3.99044]
[1688199682099,10.21885,1917.2,1917.1,3.99044]
[1688199682287,11.1570279,1917.2,1917.1,3.99044]
[1688199687298,11.1570279,1917.2,1917.1,0.78264]
[1688199688295,11.57516145,1917.2,1917.1,0.78264]
[1688199699108,11.57516145,1917.2,1917.0,0.32088411]
[1688199699897,11.57516145,1917.2,1917.0,0.00782411]
[1688199699898,5.00306,1917.1,1917.0,0.00782411]
[1688199700700,9.2520379,1917.1,1917.0,0.00782411]
[1688199700909,9.2520379,1917.1,1916.7,8.66756]
[1688199700910,9.2520379,1917.1,1916.8,0.31309]
[1688199701108,4.69,1916.9,1916.8,0.31309]
[1688199701310,5.0031,1916.9,1916.8,0.31309]
[1688199701715,9.9693,1916.9,1916.8,0.31309]
[1688199701912,10.9074779,1916.9,1916.8,0.31309]
[1688199702411,10.9074779,1916.9,1916.7,0.79058534]
[1688199702714,4.69,1916.8,1916.7,0.79058534]
[1688199702916,10.17351,1916.8,1916.7,0.79058534]
[1688199703213,11.1116879,1916.8,1916.7,0.79058534]
[1688199703420,11.1116879,1916.8,1916.7,0.00782534]
[1688199705208,11.1116879,1916.8,1916.7,0.32095534]
[1688199705403,11.1116879,1916.8,1916.7,0.00782534]
[1688199714216,11.52793873,1916.8,1916.7,0.00782534]
[1688199715317,11.52793873,1916.8,1916.7,0.32095534]
[1688199716012,11.52793873,1916.8,1916.7,0.42951645]
[1688199720912,6.04442873,1916.8,1916.7,0.7162328]
[1688199721215,0.9381779,1916.9,1916.7,8.6040328]
[1688199721410,4.69,1917.0,1916.7,8.6040328]
[1688199721615,1.8774479,1917.2,1916.9,8.2009]
[1688199721616,4.69,1917.2,1916.9,8.2009]
[1688199721814,4.69,1917.2,1917.1,3.52086]
[1688199722213,4.69,1917.2,1917.1,4.08834412]
[1688199722409,5.00305,1917.2,1917.1,4.08834412]
[1688199722818,5.42939116,1917.2,1917.1,4.08834412]
[1688199723919,5.11634116,1917.2,1917.1,4.19234412]
[1688199724115,5.00302,1917.4,1917.1,8.88234412]
[1688199724423,4.69,1917.4,1917.3,3.52083]
[1688199724624,4.69,1917.4,1917.3,4.08831412]
[1688199724818,5.00301,1917.4,1917.3,4.08831412]
[1688199725025,5.42136758,1917.4,1917.3,4.08831412]
[1688199732125,0.73136758,1917.4,1917.3,4.08831412]
[1688199734223,0.41835758,1917.4,1917.3,4.08831412]
[1688199734534,5.4623933,1917.5,1917.3,4.08831412]
[1688199735027,5.4623933,1917.5,1917.4,0.28671635]
[1688199735224,5.4623933,1917.5,1917.4,0.59972635]
[1688199735923,5.87535163,1917.5,1917.4,0.59972635]
[1688199741434,5.87535163,1917.5,1917.4,0.31301]
[1688199743829,5.87535163,1917.5,1917.3,3.52083]
[1688199744031,5.00301,1917.4,1917.3,3.52083]
[1688199745631,5.00301,1917.4,1917.3,3.80754635]
[1688199750539,9.98071,1917.4,1917.3,3.52083]
[1688199750839,9.98071,1917.4,1917.3,0.31303]
[1688199759837,9.87771,1917.4,1917.3,0.31303]
[1688199760038,9.87771,1917.4,1917.3,0.59974635]
[1688199761642,9.87771,1917.4,1917.3,0.31303]
[1688199764246,9.87771,1917.4,1917.3,3.80754635]
[1688199765643,4.69,1917.4,1917.3,3.80754635]
[1688199765852,0.73379163,1917.5,1917.3,3.80754635]
[1688199766146,0.08832883,1917.4,1917.3,3.80754635]
[1688199766646,0.08832883,1917.4,1917.3,4.37503047]
[1688199767448,0.73379163,1917.5,1917.3,4.37503047]
[1688199769756,0.42078163,1917.5,1917.3,4.37503047]
[1688199770158,0.73378163,1917.5,1917.3,4.37503047]
[1688199770855,0.42078163,1917.5,1917.3,4.37503047]
[1688199771063,0.42078163,1917.5,1917.4,4.681]
[1688199771358,0.42078163,1917.5,1917.4,4.99401]
[1688199782058,0.42078163,1917.5,1917.4,0.31301]
[1688199783973,0.42078163,1917.5,1917.4,4.99401]
[1688199789570,13.4039189,1917.8,1917.4,4.99401]
[1688199789571,2.5273389,1917.8,1917.4,4.99401]
[1688199789877,0.9381779,1918.2,1917.7,12.5778]
[1688199790178,0.9381779,1918.6,1918.4,0.31285]
[1688199790371,4.98479,1918.8,1918.6,0.31282]
[1688199790571,5.08779,1918.8,1918.7,0.3128]
[1688199791373,5.08779,1918.8,1918.7,0.59951635]
[1688199792075,5.10579,1918.8,1918.7,0.59951635]
[1688199793781,5.10579,1918.8,1918.7,0.3128]
[1688199796687,5.10579,1918.8,1918.7,0.59951635]
[1688199798789,5.10579,1918.8,1918.7,0.3128]
[1688199799487,5.10579,1918.8,1918.7,0.59951635]
[1688199799989,5.10579,1918.8,1918.7,0.3128]